[Event "Early-Titled-Tuesday-Blitz-May-28-2024"]
[Site "Chess.com"]
[Date "2024.05.28"]
[Round "9"]
[White "Yaacovn"]
[Black "jk13"]
[Result "1-0"]
[WhiteElo "2865"]
[BlackElo "2674"]
[TimeControl "180+1"]
[EndTime "9:47:29 PDT"]
[Termination "Yaacovn won by resignation"]

1. d4 {[%clk 0:03:00.9]} 1... Nf6 {[%clk 0:03:00.3]} 2. e3 {[%clk 0:03:00.8]}
2... e6 {[%clk 0:03:00.6]} 3. Bd3 {[%clk 0:03:00.6]} 3... d5 {[%clk 0:03:01.3]}
4. Nd2 {[%clk 0:03:00.2]} 4... Be7 {[%clk 0:02:59.7]} 5. c3 {[%clk 0:03:00.2]}
5... b6 {[%clk 0:02:58.3]} 6. e4 {[%clk 0:02:58.1]} 6... O-O {[%clk 0:02:56.6]}
7. e5 {[%clk 0:02:58.2]} 7... Nfd7 {[%clk 0:02:57.1]} 8. Qe2 {[%clk 0:02:58.3]}
8... a5 {[%clk 0:02:34.7]} 9. c4 {[%clk 0:02:52.7]} 9... Bb7 {[%clk 0:02:31]}
10. Ngf3 {[%clk 0:02:51.8]} 10... c5 {[%clk 0:02:31.2]} 11. cxd5 {[%clk
0:02:50.9]} 11... Bxd5 {[%clk 0:02:25.2]} 12. Be4 {[%clk 0:02:49.7]} 12... Nc6
{[%clk 0:02:06.3]} 13. Bxd5 {[%clk 0:02:47]} 13... exd5 {[%clk 0:02:07.2]} 14.
e6 {[%clk 0:02:43.4]} 14... Nf6 {[%clk 0:02:06.8]} 15. exf7+ {[%clk 0:02:43.5]}
15... Rxf7 {[%clk 0:02:04.6]} 16. O-O {[%clk 0:02:34.2]} 16... Bd6 {[%clk
0:01:32.2]} 17. dxc5 {[%clk 0:02:31.4]} 17... bxc5 {[%clk 0:01:32.1]} 18. Qe6
{[%clk 0:02:24.1]} 18... Qd7 {[%clk 0:01:30.2]} 19. Qxd7 {[%clk 0:02:22.1]}
19... Rxd7 {[%clk 0:01:29.8]} 20. Re1 {[%clk 0:02:19.8]} 20... a4 {[%clk
0:01:27.5]} 21. Nf1 {[%clk 0:02:19.3]} 21... Rb8 {[%clk 0:01:24.8]} 22. Re2
{[%clk 0:02:18.4]} 22... Rdb7 {[%clk 0:01:23.3]} 23. Ne3 {[%clk 0:02:14.6]}
23... g6 {[%clk 0:01:13.8]} 24. g3 {[%clk 0:02:10]} 24... Rb4 {[%clk 0:00:39.2]}
25. Kg2 {[%clk 0:02:05.4]} 25... h5 {[%clk 0:00:34.4]} 26. h4 {[%clk 0:01:55.1]}
26... Nd4 {[%clk 0:00:25.9]} 27. Nxd4 {[%clk 0:01:47.6]} 27... Rxd4 {[%clk
0:00:26.8]} 28. Rc2 {[%clk 0:01:41.8]} 28... Rdb4 {[%clk 0:00:19.6]} 29. Bd2
{[%clk 0:01:41.6]} 29... R4b5 {[%clk 0:00:12.6]} 30. Rd1 {[%clk 0:01:40.9]}
30... Be5 {[%clk 0:00:11]} 31. Bc1 {[%clk 0:01:26.8]} 31... Bd4 {[%clk
0:00:11.3]} 32. Kf3 {[%clk 0:01:17.1]} 32... Kf7 {[%clk 0:00:11.6]} 33. Ng2
{[%clk 0:01:14.3]} 33... Be5 {[%clk 0:00:10.7]} 34. Ne3 {[%clk 0:01:10.2]} 34...
Bd4 {[%clk 0:00:10.7]} 35. Rdd2 {[%clk 0:01:09.1]} 35... Ne4 {[%clk 0:00:09.6]}
36. Re2 {[%clk 0:01:09.1]} 36... Nf6 {[%clk 0:00:10]} 37. Kg2 {[%clk 0:01:06.4]}
37... R8b7 {[%clk 0:00:09.9]} 38. Kf1 {[%clk 0:01:02.2]} 38... Bxe3 {[%clk
0:00:10.2]} 39. Rxe3 {[%clk 0:00:58.8]} 39... d4 {[%clk 0:00:10.5]} 40. Ra3
{[%clk 0:00:58.9]} 40... Rb4 {[%clk 0:00:10.2]} 41. Rxc5 {[%clk 0:00:55.9]}
41... Rd7 {[%clk 0:00:06.2]} 42. Rd3 {[%clk 0:00:51.2]} 42... Ne4 {[%clk
0:00:04.9]} 43. Rc2 {[%clk 0:00:49.9]} 43... Rd5 {[%clk 0:00:04.5]} 44. Be3
{[%clk 0:00:43.7]} 44... Nc5 {[%clk 0:00:03.2]} 45. Rxd4 {[%clk 0:00:43.9]}
45... Rdxd4 {[%clk 0:00:02.9]} 46. Bxd4 {[%clk 0:00:44.8]} 46... Rxd4 {[%clk
0:00:01.9]} 47. Rxc5 {[%clk 0:00:45]} 47... Rd2 {[%clk 0:00:01.6]} 48. Rb5
{[%clk 0:00:44.1]} 48... Rc2 {[%clk 0:00:01.4]} 49. a3 {[%clk 0:00:43.2]} 49...
Rd2 {[%clk 0:00:01.3]} 50. Rb4 {[%clk 0:00:43.4]} 50... Rc2 {[%clk 0:00:01.5]}
51. Rxa4 {[%clk 0:00:43.2]} 51... Rxb2 {[%clk 0:00:01.9]} 52. Rf4+ {[%clk
0:00:43.8]} 52... Kg7 {[%clk 0:00:01.4]} 53. a4 {[%clk 0:00:44.4]} 53... Ra2
{[%clk 0:00:01.9]} 54. Ke1 {[%clk 0:00:44.7]} 54... Kh6 {[%clk 0:00:02.1]} 55.
Kd1 {[%clk 0:00:45]} 55... Kg7 {[%clk 0:00:02.9]} 56. Kc1 {[%clk 0:00:45.3]}
56... Kh6 {[%clk 0:00:02.1]} 57. Kb1 {[%clk 0:00:45.6]} 57... Ra3 {[%clk
0:00:02.3]} 58. Kb2 {[%clk 0:00:45.6]} 58... Rd3 {[%clk 0:00:02.5]} 59. a5
{[%clk 0:00:44.4]} 59... Rd6 {[%clk 0:00:01]} 60. Kb3 {[%clk 0:00:44]} 60... Ra6
{[%clk 0:00:01.3]} 61. Kb4 {[%clk 0:00:44.2]} 61... Ra8 {[%clk 0:00:02.2]} 62.
Kb5 {[%clk 0:00:44.6]} 62... Re8 {[%clk 0:00:02.8]} 63. a6 {[%clk 0:00:44.2]}
63... Re1 {[%clk 0:00:03.7]} 64. Ra4 {[%clk 0:00:42.5]} 64... Rb1+ {[%clk
0:00:03.9]} 65. Kc6 {[%clk 0:00:42.8]} 65... Rc1+ {[%clk 0:00:04.1]} 66. Kd5
{[%clk 0:00:43.1]} 66... Rd1+ {[%clk 0:00:04.6]} 67. Ke4 {[%clk 0:00:43.1]}
67... Rd8 {[%clk 0:00:05.3]} 68. a7 {[%clk 0:00:43]} 68... Ra8 {[%clk
0:00:06.2]} 69. Kd5 {[%clk 0:00:43.1]} 69... Kg7 {[%clk 0:00:06.8]} 70. Kc6
{[%clk 0:00:43.4]} 1-0

[Event "Early-Titled-Tuesday-Blitz-May-28-2024"]
[Site "Chess.com"]
[Date "2024.05.28"]
[Round "9"]
[White "biveklama"]
[Black "Flaccidmoves"]
[Result "1-0"]
[WhiteElo "2613"]
[BlackElo "2489"]
[TimeControl "180+1"]
[EndTime "9:47:29 PDT"]
[Termination "biveklama won on time"]

1. e4 {[%clk 0:02:57.6]} 1... e6 {[%clk 0:03:00.2]} 2. d4 {[%clk 0:02:57]} 2...
d5 {[%clk 0:03:00.8]} 3. Nc3 {[%clk 0:02:56.7]} 3... Bb4 {[%clk 0:03:00.4]} 4.
e5 {[%clk 0:02:55.7]} 4... c5 {[%clk 0:03:00.2]} 5. a3 {[%clk 0:02:56.3]} 5...
Bxc3+ {[%clk 0:02:59.7]} 6. bxc3 {[%clk 0:02:57.2]} 6... Ne7 {[%clk 0:02:56.5]}
7. h4 {[%clk 0:02:49]} 7... Qc7 {[%clk 0:02:55.1]} 8. Rh3 {[%clk 0:02:44.5]}
8... b6 {[%clk 0:02:43.6]} 9. h5 {[%clk 0:02:42]} 9... h6 {[%clk 0:02:41.7]} 10.
Bd2 {[%clk 0:02:28.6]} 10... Ba6 {[%clk 0:02:40.2]} 11. Qg4 {[%clk 0:02:20.4]}
11... Bxf1 {[%clk 0:02:31.3]} 12. Kxf1 {[%clk 0:02:20.5]} 12... Nf5 {[%clk
0:02:26.5]} 13. Ne2 {[%clk 0:02:05.7]} 13... cxd4 {[%clk 0:02:13.9]} 14. Nxd4
{[%clk 0:01:50.8]} 14... Qc4+ {[%clk 0:01:51.7]} 15. Kg1 {[%clk 0:01:48.5]}
15... Nc6 {[%clk 0:01:48.1]} 16. Re1 {[%clk 0:01:30]} 16... Ncxd4 {[%clk
0:01:42.4]} 17. cxd4 {[%clk 0:01:29.5]} 17... Qxd4 {[%clk 0:01:27.8]} 18. Qe2
{[%clk 0:01:24.4]} 18... Qc4 {[%clk 0:01:20.3]} 19. Rd3 {[%clk 0:01:09.8]} 19...
O-O {[%clk 0:01:05.5]} 20. c3 {[%clk 0:00:41.1]} 20... d4 {[%clk 0:00:28.7]} 21.
Qe4 {[%clk 0:00:36.7]} 21... Rfd8 {[%clk 0:00:20.1]} 22. g4 {[%clk 0:00:36.5]}
22... Ne7 {[%clk 0:00:19.9]} 23. cxd4 {[%clk 0:00:33.8]} 23... Rac8 {[%clk
0:00:18.3]} 24. g5 {[%clk 0:00:26.6]} 24... hxg5 {[%clk 0:00:17.5]} 25. Bxg5
{[%clk 0:00:26.3]} 25... Rd7 {[%clk 0:00:16.7]} 26. Bxe7 {[%clk 0:00:23.7]}
26... Rxe7 {[%clk 0:00:17.6]} 27. Rg3 {[%clk 0:00:20.5]} 27... Kh8 {[%clk
0:00:09.7]} 28. Qg4 {[%clk 0:00:18.8]} 28... Rg8 {[%clk 0:00:08.3]} 29. h6
{[%clk 0:00:18.7]} 29... g5 {[%clk 0:00:06.4]} 30. Ree3 {[%clk 0:00:08.6]} 30...
Rd7 {[%clk 0:00:04.8]} 31. Qf3 {[%clk 0:00:07.5]} 31... Rg6 {[%clk 0:00:02.7]}
32. h7 {[%clk 0:00:06.8]} 32... Qxd4 {[%clk 0:00:01.6]} 33. Re4 {[%clk
0:00:06.2]} 33... Qd1+ {[%clk 0:00:01.2]} 34. Kg2 {[%clk 0:00:06.6]} 34... Qxf3+
{[%clk 0:00:01]} 35. Rxf3 {[%clk 0:00:07.5]} 35... Kxh7 {[%clk 0:00:01.6]} 36.
Rc3 {[%clk 0:00:06.9]} 36... g4 {[%clk 0:00:01.2]} 37. a4 {[%clk 0:00:06.7]}
37... Rg5 {[%clk 0:00:01.4]} 38. Ra3 {[%clk 0:00:04.4]} 38... Kg6 {[%clk
0:00:01.4]} 39. a5 {[%clk 0:00:04.4]} 39... b5 {[%clk 0:00:01.1]} 40. a6 {[%clk
0:00:04.3]} 40... Rd5 {[%clk 0:00:01]} 41. Rae3 {[%clk 0:00:03.9]} 41... Rc5
{[%clk 0:00:01]} 42. Kg3 {[%clk 0:00:03.8]} 1-0

[Event "Early-Titled-Tuesday-Blitz-May-28-2024"]
[Site "Chess.com"]
[Date "2024.05.28"]
[Round "9"]
[White "FischerKasparow"]
[Black "C_K_G"]
[Result "0-1"]
[WhiteElo "2111"]
[BlackElo "2301"]
[TimeControl "180+1"]
[EndTime "9:47:30 PDT"]
[Termination "C_K_G won on time"]

1. e4 {[%clk 0:03:00.9]} 1... c5 {[%clk 0:02:56]} 2. Nf3 {[%clk 0:03:00]} 2...
d6 {[%clk 0:02:56.3]} 3. d4 {[%clk 0:02:59.7]} 3... cxd4 {[%clk 0:02:57]} 4.
Nxd4 {[%clk 0:03:00.1]} 4... Nf6 {[%clk 0:02:57.6]} 5. Nc3 {[%clk 0:02:59.8]}
5... a6 {[%clk 0:02:58.5]} 6. a4 {[%clk 0:02:59.7]} 6... e5 {[%clk 0:02:59]} 7.
Nf3 {[%clk 0:02:59.3]} 7... Be6 {[%clk 0:02:59.6]} 8. Bg5 {[%clk 0:02:58.5]}
8... Be7 {[%clk 0:02:59.8]} 9. Bxf6 {[%clk 0:02:58.6]} 9... Bxf6 {[%clk
0:02:59.4]} 10. Nd5 {[%clk 0:02:58.3]} 10... Be7 {[%clk 0:02:51.8]} 11. Bc4
{[%clk 0:02:52.2]} 11... O-O {[%clk 0:02:50.1]} 12. O-O {[%clk 0:02:49.8]} 12...
Nd7 {[%clk 0:02:46.4]} 13. Qd2 {[%clk 0:02:36.8]} 13... Nc5 {[%clk 0:02:44.3]}
14. Rfe1 {[%clk 0:02:35.2]} 14... Rc8 {[%clk 0:02:37.6]} 15. Nxe7+ {[%clk
0:02:29]} 15... Qxe7 {[%clk 0:02:35.5]} 16. Bxe6 {[%clk 0:02:28.7]} 16... fxe6
{[%clk 0:02:26.8]} 17. c4 {[%clk 0:02:26.3]} 17... Nb3 {[%clk 0:02:13]} 18. Qd3
{[%clk 0:02:26.3]} 18... Nxa1 {[%clk 0:02:12.6]} 19. Rxa1 {[%clk 0:02:27.2]}
19... Rc6 {[%clk 0:02:12.4]} 20. b3 {[%clk 0:02:26.4]} 20... Rc7 {[%clk
0:01:57.2]} 21. Rd1 {[%clk 0:02:24.5]} 21... Rd7 {[%clk 0:01:57.3]} 22. Nxe5
{[%clk 0:02:21.3]} 22... Rdd8 {[%clk 0:01:41.2]} 23. Nf3 {[%clk 0:02:21]} 23...
Rf7 {[%clk 0:01:35.4]} 24. Rd2 {[%clk 0:02:18.4]} 24... h6 {[%clk 0:01:34.5]}
25. b4 {[%clk 0:02:07.2]} 25... d5 {[%clk 0:01:29]} 26. exd5 {[%clk 0:02:05.1]}
26... exd5 {[%clk 0:01:29.9]} 27. c5 {[%clk 0:02:05.3]} 27... Rf4 {[%clk
0:01:24.2]} 28. Re2 {[%clk 0:01:51.9]} 28... Qf6 {[%clk 0:01:22.8]} 29. b5
{[%clk 0:01:44]} 29... Rxa4 {[%clk 0:01:18.8]} 30. h4 {[%clk 0:01:29.9]} 30...
Ra1+ {[%clk 0:01:13]} 31. Kh2 {[%clk 0:01:28.7]} 31... axb5 {[%clk 0:01:03.7]}
32. g3 {[%clk 0:01:04]} 32... Rc1 {[%clk 0:00:59.1]} 33. Ne5 {[%clk 0:00:51.3]}
33... Rxc5 {[%clk 0:00:46.7]} 34. Ng6 {[%clk 0:00:48.1]} 34... Rc7 {[%clk
0:00:23.5]} 35. h5 {[%clk 0:00:47.4]} 35... b4 {[%clk 0:00:22.6]} 36. Qb5 {[%clk
0:00:40.7]} 36... Qf3 {[%clk 0:00:17.4]} 37. Re8+ {[%clk 0:00:34.3]} 37... Kh7
{[%clk 0:00:14.9]} 38. Rxd8 {[%clk 0:00:19.7]} 38... Qxh5+ {[%clk 0:00:13.8]}
39. Kg2 {[%clk 0:00:18.7]} 39... Qxg6 {[%clk 0:00:13.4]} 40. Rxd5 {[%clk
0:00:10.3]} 40... Qe4+ {[%clk 0:00:12.7]} 41. Kh3 {[%clk 0:00:10]} 41... Rc1
{[%clk 0:00:11.3]} 0-1

[Event "Early-Titled-Tuesday-Blitz-May-28-2024"]
[Site "Chess.com"]
[Date "2024.05.28"]
[Round "9"]
[White "CarlosjPineror"]
[Black "Bauman_Guy"]
[Result "1-0"]
[WhiteElo "2765"]
[BlackElo "2913"]
[TimeControl "180+1"]
[EndTime "9:47:31 PDT"]
[Termination "CarlosjPineror won by resignation"]

1. e4 {[%clk 0:03:00.9]} 1... c5 {[%clk 0:03:00]} 2. Nf3 {[%clk 0:03:01]} 2...
d6 {[%clk 0:03:00.6]} 3. d4 {[%clk 0:03:01.2]} 3... Nf6 {[%clk 0:03:01.3]} 4.
Nc3 {[%clk 0:03:00.9]} 4... cxd4 {[%clk 0:03:01.7]} 5. Nxd4 {[%clk 0:03:01.8]}
5... a6 {[%clk 0:03:02.3]} 6. Bg5 {[%clk 0:03:02.3]} 6... Nbd7 {[%clk
0:03:02.9]} 7. f4 {[%clk 0:03:02.9]} 7... Qa5 {[%clk 0:03:02.5]} 8. Qe2 {[%clk
0:03:02]} 8... h6 {[%clk 0:03:00.9]} 9. Bh4 {[%clk 0:03:00.6]} 9... e5 {[%clk
0:02:46.1]} 10. Nb3 {[%clk 0:02:47.7]} 10... Qc7 {[%clk 0:02:45.5]} 11. f5
{[%clk 0:02:46.7]} 11... b5 {[%clk 0:02:44.8]} 12. a3 {[%clk 0:02:47.1]} 12...
Bb7 {[%clk 0:02:43.9]} 13. O-O-O {[%clk 0:02:47.3]} 13... Be7 {[%clk 0:02:44.1]}
14. Bf2 {[%clk 0:02:43]} 14... Rc8 {[%clk 0:02:42.3]} 15. Kb1 {[%clk 0:02:40.6]}
15... Nb6 {[%clk 0:02:39.6]} 16. Qe1 {[%clk 0:01:37.7]} 16... Na4 {[%clk
0:02:37.2]} 17. Bd3 {[%clk 0:01:13.7]} 17... Nxc3+ {[%clk 0:02:33.6]} 18. bxc3
{[%clk 0:01:14.6]} 18... d5 {[%clk 0:02:32.6]} 19. Bh4 {[%clk 0:01:11.1]} 19...
dxe4 {[%clk 0:02:21.5]} 20. Bxf6 {[%clk 0:01:08.3]} 20... exd3 {[%clk
0:02:21.4]} 21. Bxe5 {[%clk 0:01:05.6]} 21... dxc2+ {[%clk 0:02:06.8]} 22. Kxc2
{[%clk 0:01:06.5]} 22... Qc4 {[%clk 0:02:07.2]} 23. Bxg7 {[%clk 0:00:58.1]}
23... Rg8 {[%clk 0:01:19.5]} 24. f6 {[%clk 0:00:57]} 24... Be4+ {[%clk
0:01:19.8]} 25. Kb2 {[%clk 0:00:56.3]} 25... Bxf6 {[%clk 0:01:19.9]} 26. Bxf6
{[%clk 0:00:45.4]} 26... Rxg2+ {[%clk 0:01:19.3]} 27. Rd2 {[%clk 0:00:43.3]}
27... Rg6 {[%clk 0:00:27.5]} 28. Rd4 {[%clk 0:00:23]} 28... Rg2+ {[%clk
0:00:25.6]} 29. Ka1 {[%clk 0:00:14.2]} 29... Qxb3 {[%clk 0:00:16.9]} 30. Qxe4+
{[%clk 0:00:13.6]} 30... Kf8 {[%clk 0:00:17.4]} 31. Qxg2 {[%clk 0:00:08.9]}
31... Qxa3+ {[%clk 0:00:17]} 32. Qa2 {[%clk 0:00:08.6]} 32... Qxc3+ {[%clk
0:00:17.5]} 33. Qb2 {[%clk 0:00:09.3]} 33... Qa5+ {[%clk 0:00:17.9]} 34. Kb1
{[%clk 0:00:10]} 34... Qb6 {[%clk 0:00:18.3]} 35. Rc1 {[%clk 0:00:09.6]} 35...
Rxc1+ {[%clk 0:00:17.6]} 36. Kxc1 {[%clk 0:00:07.3]} 36... Qxf6 {[%clk
0:00:18.5]} 37. Qd2 {[%clk 0:00:07.9]} 37... Qf1+ {[%clk 0:00:17.3]} 38. Kb2
{[%clk 0:00:07.8]} 38... Qf6 {[%clk 0:00:18]} 39. Kb3 {[%clk 0:00:06.3]} 39...
a5 {[%clk 0:00:15.8]} 40. Rd8+ {[%clk 0:00:05.9]} 40... Kg7 {[%clk 0:00:14.4]}
41. Qd4 {[%clk 0:00:06.2]} 41... Qxd4 {[%clk 0:00:10.9]} 42. Rxd4 {[%clk
0:00:07.1]} 42... Kf6 {[%clk 0:00:11.8]} 43. Rd5 {[%clk 0:00:07.4]} 43... a4+
{[%clk 0:00:10.4]} 44. Kb4 {[%clk 0:00:07.5]} 44... Ke6 {[%clk 0:00:11.3]} 45.
Rxb5 {[%clk 0:00:07.9]} 45... f5 {[%clk 0:00:11.8]} 46. Rb6+ {[%clk 0:00:08.4]}
46... Ke5 {[%clk 0:00:11]} 47. Rxh6 {[%clk 0:00:09.3]} 47... f4 {[%clk
0:00:11.9]} 48. Rh8 {[%clk 0:00:09.5]} 48... f3 {[%clk 0:00:10.4]} 49. Rf8
{[%clk 0:00:10.1]} 49... Ke4 {[%clk 0:00:11.3]} 50. h4 {[%clk 0:00:10.3]} 50...
Ke3 {[%clk 0:00:11.7]} 51. h5 {[%clk 0:00:11]} 51... Ke2 {[%clk 0:00:12.6]} 52.
h6 {[%clk 0:00:11.3]} 52... f2 {[%clk 0:00:13.5]} 1-0

[Event "Early-Titled-Tuesday-Blitz-May-28-2024"]
[Site "Chess.com"]
[Date "2024.05.28"]
[Round "9"]
[White "unbreakablepawn35"]
[Black "simaopdias"]
[Result "0-1"]
[WhiteElo "2351"]
[BlackElo "2248"]
[TimeControl "180+1"]
[EndTime "9:47:32 PDT"]
[Termination "simaopdias won by checkmate"]

1. c4 {[%clk 0:03:00.9]} 1... e6 {[%clk 0:02:52]} 2. Nc3 {[%clk 0:03:01.1]} 2...
d5 {[%clk 0:02:52.9]} 3. d4 {[%clk 0:03:00.9]} 3... Be7 {[%clk 0:02:52.6]} 4.
cxd5 {[%clk 0:03:00.5]} 4... exd5 {[%clk 0:02:52.6]} 5. Qc2 {[%clk 0:03:00.8]}
5... c6 {[%clk 0:02:53.5]} 6. Bf4 {[%clk 0:02:52.8]} 6... Nd7 {[%clk 0:02:54]}
7. e3 {[%clk 0:02:53]} 7... Ngf6 {[%clk 0:02:53.7]} 8. Bd3 {[%clk 0:02:53.5]}
8... O-O {[%clk 0:02:53.9]} 9. Nf3 {[%clk 0:02:53.8]} 9... h6 {[%clk 0:02:54.2]}
10. h3 {[%clk 0:02:54.2]} 10... Re8 {[%clk 0:02:55.1]} 11. O-O {[%clk
0:02:54.5]} 11... Nf8 {[%clk 0:02:55.7]} 12. Rab1 {[%clk 0:02:54.7]} 12... Nh5
{[%clk 0:02:52.2]} 13. Bh2 {[%clk 0:02:55]} 13... Bd6 {[%clk 0:02:52.5]} 14.
Bxd6 {[%clk 0:02:54]} 14... Qxd6 {[%clk 0:02:52.5]} 15. b4 {[%clk 0:02:54.7]}
15... a6 {[%clk 0:02:52.1]} 16. a4 {[%clk 0:02:55.2]} 16... g6 {[%clk
0:02:48.9]} 17. b5 {[%clk 0:02:54.8]} 17... axb5 {[%clk 0:02:42.4]} 18. axb5
{[%clk 0:02:55.7]} 18... Ng7 {[%clk 0:02:42.5]} 19. Ra1 {[%clk 0:02:48.7]} 19...
Bf5 {[%clk 0:02:40.8]} 20. bxc6 {[%clk 0:02:42.8]} 20... bxc6 {[%clk 0:02:41.7]}
21. Rfc1 {[%clk 0:02:40.7]} 21... Ra3 {[%clk 0:02:37.4]} 22. Rxa3 {[%clk
0:02:38.4]} 22... Qxa3 {[%clk 0:02:38.3]} 23. Bxf5 {[%clk 0:02:36.5]} 23... Nxf5
{[%clk 0:02:38.3]} 24. Nb1 {[%clk 0:02:31.8]} 24... Qa1 {[%clk 0:02:28]} 25.
Qxc6 {[%clk 0:02:24]} 25... Rd8 {[%clk 0:02:21.4]} 26. Qc3 {[%clk 0:02:21.1]}
26... Qa6 {[%clk 0:02:16]} 27. Nbd2 {[%clk 0:02:16]} 27... Ne6 {[%clk
0:02:14.6]} 28. Nb3 {[%clk 0:02:10.4]} 28... Qe2 {[%clk 0:01:59.8]} 29. Qc2
{[%clk 0:01:50.2]} 29... Qb5 {[%clk 0:01:56.3]} 30. Ne5 {[%clk 0:01:37.9]} 30...
Ng5 {[%clk 0:01:52.6]} 31. Nc5 {[%clk 0:01:35.4]} 31... Rc8 {[%clk 0:01:46.7]}
32. Rb1 {[%clk 0:01:29.7]} 32... Qa5 {[%clk 0:01:43.2]} 33. Qb2 {[%clk
0:01:20.7]} 33... Nd6 {[%clk 0:01:30.3]} 34. Ra1 {[%clk 0:01:16.2]} 34... Qd8
{[%clk 0:01:26.7]} 35. Rb1 {[%clk 0:01:05.5]} 35... Nge4 {[%clk 0:01:22.5]} 36.
Qb6 {[%clk 0:00:50.8]} 36... Qe7 {[%clk 0:01:03.5]} 37. Ra1 {[%clk 0:00:43.3]}
37... Nxc5 {[%clk 0:00:49.2]} 38. Nc6 {[%clk 0:00:27.3]} 38... Qe8 {[%clk
0:00:38.9]} 39. Na7 {[%clk 0:00:08]} 39... Nce4 {[%clk 0:00:34.2]} 40. Nxc8
{[%clk 0:00:08.2]} 40... Qxc8 {[%clk 0:00:30.8]} 41. Qa7 {[%clk 0:00:08.5]}
41... Qf5 {[%clk 0:00:29.7]} 42. Qa8+ {[%clk 0:00:07.9]} 42... Kg7 {[%clk
0:00:27]} 43. Qa2 {[%clk 0:00:08.8]} 43... Nc4 {[%clk 0:00:23.1]} 44. Rc1 {[%clk
0:00:09.2]} 44... Ncd2 {[%clk 0:00:22.3]} 45. Rf1 {[%clk 0:00:04.8]} 45... Nxf1
{[%clk 0:00:21.4]} 46. Kxf1 {[%clk 0:00:05.7]} 46... Nc3 {[%clk 0:00:15.1]} 47.
Qa5 {[%clk 0:00:03.2]} 47... Qb1# {[%clk 0:00:14.8]} 0-1

[Event "Early-Titled-Tuesday-Blitz-May-28-2024"]
[Site "Chess.com"]
[Date "2024.05.28"]
[Round "9"]
[White "viktorskliarov"]
[Black "verrbaa"]
[Result "0-1"]
[WhiteElo "2626"]
[BlackElo "2475"]
[TimeControl "180+1"]
[EndTime "9:47:33 PDT"]
[Termination "verrbaa won by resignation"]

1. e4 {[%clk 0:03:00.9]} 1... c5 {[%clk 0:02:59.3]} 2. Nf3 {[%clk 0:03:00.3]}
2... e6 {[%clk 0:02:59.4]} 3. d4 {[%clk 0:02:59.7]} 3... cxd4 {[%clk 0:02:59.7]}
4. Nxd4 {[%clk 0:03:00.6]} 4... Nc6 {[%clk 0:02:59.6]} 5. Nc3 {[%clk 0:03:00.7]}
5... Qc7 {[%clk 0:02:59.3]} 6. Be2 {[%clk 0:03:00.5]} 6... Nf6 {[%clk
0:02:58.5]} 7. O-O {[%clk 0:03:00.2]} 7... Be7 {[%clk 0:02:58]} 8. Be3 {[%clk
0:02:56.1]} 8... O-O {[%clk 0:02:57.2]} 9. f4 {[%clk 0:02:56.3]} 9... d6 {[%clk
0:02:57.3]} 10. Kh1 {[%clk 0:02:56.6]} 10... a6 {[%clk 0:02:57.1]} 11. Qe1
{[%clk 0:02:56.3]} 11... Nxd4 {[%clk 0:02:41.2]} 12. Bxd4 {[%clk 0:02:56]} 12...
b5 {[%clk 0:02:41.3]} 13. a3 {[%clk 0:02:56]} 13... Bb7 {[%clk 0:02:41.1]} 14.
Qg3 {[%clk 0:02:55.7]} 14... g6 {[%clk 0:02:37.4]} 15. Bf3 {[%clk 0:02:22.6]}
15... Bc6 {[%clk 0:02:35]} 16. e5 {[%clk 0:01:55.1]} 16... dxe5 {[%clk
0:02:23.9]} 17. fxe5 {[%clk 0:01:50.4]} 17... Nd7 {[%clk 0:02:21.2]} 18. Ne4
{[%clk 0:01:37.5]} 18... Bxe4 {[%clk 0:02:19.6]} 19. Bxe4 {[%clk 0:01:37.2]}
19... Rad8 {[%clk 0:02:06.8]} 20. h4 {[%clk 0:01:29.4]} 20... Bc5 {[%clk
0:02:04]} 21. Bc3 {[%clk 0:01:23.2]} 21... f5 {[%clk 0:01:34.5]} 22. h5 {[%clk
0:01:09.8]} 22... Kg7 {[%clk 0:01:14.9]} 23. Bf3 {[%clk 0:01:00.4]} 23... Nb6
{[%clk 0:01:12.3]} 24. Qg5 {[%clk 0:00:52]} 24... Na4 {[%clk 0:00:54.9]} 25. h6+
{[%clk 0:00:22]} 25... Kg8 {[%clk 0:00:54.2]} 26. Rad1 {[%clk 0:00:21.5]} 26...
Nxc3 {[%clk 0:00:51.7]} 27. bxc3 {[%clk 0:00:20.8]} 27... Be7 {[%clk 0:00:42.2]}
28. Qe3 {[%clk 0:00:19.5]} 28... Bxa3 {[%clk 0:00:34]} 29. c4 {[%clk 0:00:15.5]}
29... Bc5 {[%clk 0:00:33.5]} 30. Qb3 {[%clk 0:00:15.7]} 30... b4 {[%clk
0:00:32.3]} 31. Qa4 {[%clk 0:00:15.5]} 31... a5 {[%clk 0:00:24.4]} 32. Qc6
{[%clk 0:00:08.2]} 32... Qxc6 {[%clk 0:00:22.6]} 33. Bxc6 {[%clk 0:00:09.1]}
33... Bd4 {[%clk 0:00:20]} 34. Rfe1 {[%clk 0:00:04.8]} 34... Bc3 {[%clk
0:00:17.9]} 35. Rf1 {[%clk 0:00:04]} 35... Kf7 {[%clk 0:00:14.1]} 36. Bb5 {[%clk
0:00:03.3]} 36... Bd2 {[%clk 0:00:12.9]} 37. g3 {[%clk 0:00:02.7]} 37... Bxh6
{[%clk 0:00:12.7]} 38. Kg2 {[%clk 0:00:03.3]} 38... Bg7 {[%clk 0:00:12.6]} 39.
Rfe1 {[%clk 0:00:02.4]} 39... Rxd1 {[%clk 0:00:11.9]} 40. Rxd1 {[%clk
0:00:02.7]} 40... Bxe5 {[%clk 0:00:12.6]} 41. Rd7+ {[%clk 0:00:02.9]} 41... Kf6
{[%clk 0:00:12]} 42. Rxh7 {[%clk 0:00:03.5]} 42... Rd8 {[%clk 0:00:11.9]} 43.
Ra7 {[%clk 0:00:03.1]} 43... Rd2+ {[%clk 0:00:11.6]} 44. Kf3 {[%clk 0:00:03.6]}
44... Rxc2 {[%clk 0:00:11.8]} 45. Rxa5 {[%clk 0:00:03]} 45... b3 {[%clk
0:00:12.1]} 46. g4 {[%clk 0:00:02.9]} 46... b2 {[%clk 0:00:12]} 47. Ra7 {[%clk
0:00:02.4]} 47... b1=Q {[%clk 0:00:11]} 48. Be8 {[%clk 0:00:03.1]} 48... Qf1+
{[%clk 0:00:10.1]} 0-1